bitfinex/quotes_SOLUSD_20220302
["timestamp","ask_amount","ask_price","bid_price","bid_amount"]
[1646206631345,187.5243,102.64,102.54,23.2903]
[1646206631846,196.85940884,102.64,102.52,5.0]
[1646206632049,97.84,102.62,102.5,37.2487]
[1646206632247,112.4696,102.6,102.5,37.2487]
[1646206632447,124.0096,102.6,102.5,37.2487]
[1646206632648,97.84,102.58,102.5,22.6209]
[1646206632847,109.38,102.58,102.5,22.6209]
[1646206633045,11.54,102.58,102.5,22.6209]
[1646206633447,49.28545181,102.59,102.51,2.54904003]
[1646206633846,49.28545181,102.59,102.51,17.17624003]
[1646206634247,49.28545181,102.59,102.52,2.54904003]
[1646206634447,49.28545181,102.59,102.53,9.23232739]
[1646206635052,49.28545181,102.59,102.53,11.78136742]
[1646206635248,49.28545181,102.59,102.53,26.40596742]
[1646206635848,14.6269,102.62,102.53,26.40596742]
[1646206636048,11.54,102.62,102.53,26.40596742]
[1646206636949,49.93499985,102.61,102.53,26.40596742]
[1646206639352,49.93499985,102.61,102.53,124.24596742]
[1646206639754,49.93499985,102.61,102.53,26.40596742]
[1646206639950,49.93499985,102.61,102.53,31.40596742]
[1646206640653,49.93499985,102.61,102.53,26.40596742]
[1646206641051,49.93499985,102.61,102.53,31.40596742]
[1646206641251,49.93499985,102.61,102.53,26.40596742]
[1646206641451,49.93499985,102.61,102.53,31.40596742]
[1646206641651,23.7167,102.63,102.54,5.0]
[1646206641850,23.7167,102.63,102.54,112.4623]
[1646206642057,38.1358,102.64,102.55,2.54904003]
[1646206642058,23.5116,102.64,102.55,2.54904003]
[1646206642255,15.439,102.66,102.55,13.48004003]
[1646206642554,47.99678439,102.65,102.56,98.12430085]
[1646206642751,47.99678439,102.65,102.57,27.70659354]
[1646206642953,62.4466,102.68,102.58,112.4571]
[1646206643154,19.97949402,102.71,102.58,120.9431]
[1646206643155,14.6154,102.7,102.58,120.9431]
[1646206643354,3.896,102.73,102.59,151.10015102]
[1646206643557,3.896,102.73,102.59,150.93859933]
[1646206643752,3.896,102.73,102.61,97.84]
[1646206643952,57.25818884,102.72,102.62,14.63253541]
[1646206644152,57.25818884,102.72,102.62,28.32136742]
[1646206644354,155.09818884,102.72,102.63,14.6093]
[1646206644559,155.09818884,102.72,102.62,11.78136742]
[1646206644757,155.09818884,102.72,102.62,9.23232739]
[1646206646158,155.09818884,102.72,102.62,23.84442739]
[1646206646159,169.71008884,102.72,102.62,23.84442739]
[1646206646757,169.71008884,102.72,102.62,9.23232739]
[1646206646957,169.71008884,102.72,102.61,28.1974]
[1646206647157,181.25008884,102.72,102.61,23.1974]
[1646206647361,112.4574,102.68,102.59,0.40020802]
[1646206647560,112.4574,102.68,102.58,49.33584805]
[1646206647858,154.52777058,102.67,102.58,71.56165589]
[1646206648058,154.52777058,102.67,102.58,2.54904003]
[1646206648260,154.52777058,102.67,102.55,5.0]
[1646206648459,227.66667058,102.67,102.55,5.0]
[1646206648661,2.36410884,102.66,102.53,76.5841]
[1646206648861,97.84,102.65,102.53,76.5841]
[1646206649058,97.84,102.65,102.53,79.13314003]
[1646206649260,100.20410884,102.65,102.54,25.24246971]
[1646206650059,112.4646,102.63,102.54,39.86606971]
[1646206650260,46.74543398,102.62,102.54,39.86606971]
[1646206651262,46.74543398,102.62,102.54,42.41510974]
[1646206651462,46.74543398,102.62,102.54,140.25510974]
[1646206651661,46.74543398,102.62,102.54,151.79510974]
[1646206652064,46.74543398,102.62,102.54,156.79510974]
[1646206652865,46.74543398,102.62,102.54,151.79510974]
[1646206653164,46.74543398,102.62,102.54,58.95510974]
[1646206655069,46.74543398,102.62,102.54,53.95510974]
[1646206655265,46.74543398,102.62,102.54,58.95510974]
[1646206655866,46.74543398,102.62,102.54,53.95510974]
[1646206656067,14.6228,102.65,102.55,97.84]
[1646206656267,18.5187,102.67,102.57,14.6194]
[1646206656468,18.5187,102.67,102.57,112.4594]
[1646206656667,18.5187,102.67,102.58,2.54904003]
[1646206656668,14.6197,102.67,102.58,2.54904003]
[1646206656967,26.8977,102.68,102.58,2.54904003]
[1646206657167,47.5887,102.69,102.59,119.15185122]
[1646206657366,18.5102,102.71,102.59,21.31185122]
[1646206657573,18.5102,102.71,102.6,2.54904003]
[1646206657768,40.72300735,102.71,102.6,2.54904003]
[1646206658169,157.8335809,102.7,102.6,2.54904003]
[1646206658570,59.9935809,102.7,102.6,17.16394003]
[1646206659172,157.8335809,102.7,102.6,17.16394003]
[1646206660276,157.8335809,102.7,102.6,2.54904003]
[1646206660477,97.84,102.67,102.59,6.69645122]
[1646206660679,143.38215636,102.66,102.59,6.69645122]
[1646206660876,45.54215636,102.66,102.59,6.69645122]
[1646206661079,154.92215636,102.66,102.56,115.44904003]
[1646206661280,177.13496371,102.66,102.55,24.5246]
[1646206661476,179.49907255,102.66,102.55,24.5246]
[1646206661975,194.11927255,102.66,102.55,50.72781214]
[1646206662181,252.63927255,102.66,102.55,50.72781214]
[1646206662380,257.63927255,102.66,102.51,36.97274003]
[1646206662583,97.84,102.64,102.51,61.32724003]
[1646206662781,115.272,102.64,102.51,61.32724003]
[1646206662981,117.63610884,102.64,102.51,61.32724003]
[1646206663381,117.63610884,102.64,102.52,25.43679242]
[1646206663982,14.6263,102.62,102.52,40.06219242]
[1646206664181,53.19232963,102.61,102.52,40.06219242]
[1646206667183,53.19232963,102.61,102.52,45.06219242]
[1646206667582,53.19232963,102.61,102.52,51.51023245]
[1646206667785,53.19232963,102.61,102.52,46.51023245]
[1646206667984,53.19232963,102.61,102.52,51.51023245]
[1646206669000,53.19232963,102.61,102.53,5.0]
[1646206669200,53.19232963,102.61,102.53,14.6247]
[1646206669402,46.3885,102.63,102.53,22.17374003]
[1646206669601,46.3885,102.63,102.53,120.01374003]
[1646206669805,46.3885,102.63,102.53,28.71374003]
[1646206670003,46.3885,102.63,102.53,33.71374003]
[1646206670505,60.04496681,102.62,102.53,33.71374003]
[1646206670906,60.04496681,102.62,102.53,131.55374003]
[1646206672005,60.04496681,102.62,102.53,33.71374003]
[1646206673608,60.04496681,102.62,102.53,31.1647]
[1646206675710,60.04496681,102.62,102.53,26.1647]
[1646206675910,60.04496681,102.62,102.53,31.1647]
[1646206676309,60.04496681,102.62,102.54,3.899]
[1646206676509,60.04496681,102.62,102.54,18.5221]
[1646206678017,61.0131,102.63,102.54,18.5221]
[1646206678915,46.3885,102.63,102.54,21.29588489]
[1646206679116,98.50407361,102.63,102.54,21.07114003]
[1646206679517,98.50407361,102.63,102.54,32.61114003]
[1646206679719,98.50407361,102.63,102.54,37.61114003]
[1646206680218,196.34407361,102.63,102.54,26.07114003]
[1646206680522,98.50407361,102.63,102.54,26.07114003]
[1646206681118,113.12877361,102.63,102.54,26.07114003]
[1646206682421,113.12877361,102.63,102.54,8.899]
[1646206682623,210.96877361,102.63,102.53,23.88122066]
[1646206682822,210.96877361,102.63,102.53,23.6577]
[1646206683023,210.96877361,102.63,102.53,28.6577]
[1646206683330,98.50407361,102.63,102.53,152.99961537]
[1646206683521,98.50407361,102.63,102.55,14.6219]
[1646206683822,98.50407361,102.63,102.56,6.50212851]
[1646206685221,98.50407361,102.63,102.54,3.899]
[1646206685626,196.34407361,102.63,102.53,40.83094003]
[1646206685822,210.96867361,102.63,102.53,40.83094003]
[1646206686222,210.96867361,102.63,102.54,27.45898239]
[1646206687424,113.12867361,102.63,102.54,27.45898239]
[1646206688622,113.12867361,102.63,102.54,42.08248239]
[1646206689624,98.50407361,102.63,102.54,142.47152242]
[1646206689825,98.50407361,102.63,102.54,146.37052242]
[1646206690324,98.50407361,102.63,102.54,151.37052242]
[1646206694628,98.50407361,102.63,102.54,53.53052242]
[1646206698532,98.50407361,102.63,102.54,146.37052242]
[1646206698730,98.50407361,102.63,102.54,151.37052242]
[1646206699130,46.3885,102.63,102.54,146.37052242]
[1646206699332,11.54,102.66,102.54,183.80038727]
[1646206699533,23.0521,102.67,102.56,97.84]
[1646206699731,23.0521,102.67,102.59,112.4553]
[1646206699931,23.0521,102.67,102.59,120.6973]
[1646206700133,58.44019098,102.66,102.6,4.47993854]
[1646206700633,58.44019098,102.66,102.58,5.0]
[1646206701434,58.44019098,102.66,102.57,14.6184]
[1646206701633,58.44019098,102.66,102.57,41.99628814]
[1646206702054,73.06049098,102.66,102.57,41.99628814]
[1646206710566,170.90049098,102.66,102.56,27.5391]
[1646206710766,170.90049098,102.66,102.56,22.5391]
[1646206710966,181.91549098,102.66,102.56,22.5391]
[1646206711566,181.91549098,102.66,102.56,48.73425317]
[1646206712467,244.28601061,102.66,102.54,6.44804003]
[1646206712669,97.84,102.64,102.54,3.899]
[1646206712868,112.4672,102.62,102.54,3.899]
[1646206713067,119.0112,102.62,102.54,3.899]
[1646206713272,132.91627441,102.62,102.54,3.899]
[1646206713473,97.84,102.6,102.54,3.899]
[1646206713870,153.46088809,102.61,102.54,3.899]
[1646206714070,165.00088809,102.61,102.54,3.899]
[1646206714270,165.00088809,102.61,102.54,3.86000582]
[1646206715078,14.6301,102.6,102.54,3.86000582]
[1646206715475,55.97088809,102.61,102.54,3.86000582]
[1646206716378,153.46088809,102.61,102.54,3.86000582]
[1646206716777,168.08848809,102.61,102.54,3.86000582]
[1646206716976,179.62848809,102.61,102.54,3.86000582]
[1646206717779,82.13848809,102.61,102.54,3.86000582]
[1646206718180,55.97088809,102.61,102.55,8.41156918]
[1646206720283,55.97088809,102.61,102.54,18.48360582]
[1646206720481,55.97088809,102.61,102.48,264.0421]
[1646206720681,46.0995,102.6,102.49,63.8247]
[1646206720881,46.0995,102.6,102.49,61.37374003]
[1646206721081,46.0995,102.6,102.5,5.0]
[1646206721282,46.0995,102.6,102.51,28.26753736]
[1646206722082,60.729,102.6,102.51,28.26753736]
[1646206722281,158.219,102.6,102.51,28.26753736]
[1646206722583,169.759,102.6,102.51,28.26753736]
[1646206722781,169.759,102.6,102.5,2.54904003]
[1646206722981,169.759,102.6,102.49,47.2847]
[1646206723184,97.49,102.58,102.48,43.85698127]
[1646206723381,97.49,102.54,102.48,5.0]
[1646206723581,104.079,102.54,102.43,48.4846]
[1646206723783,51.45492305,102.53,102.44,28.01583555]
[1646206724186,148.94492305,102.53,102.44,28.01583555]
[1646206724583,163.58432305,102.53,102.43,53.4846]
[1646206724782,175.12432305,102.53,102.43,48.4846]
[1646206725184,175.12432305,102.53,102.42,14.6394]
[1646206725588,175.12432305,102.53,102.43,29.71045629]
[1646206725786,197.61836374,102.53,102.43,29.71045629]
[1646206726691,175.12432305,102.53,102.43,29.71045629]
[1646206728986,77.63432305,102.53,102.43,29.71045629]
[1646206729187,62.99492305,102.53,102.43,141.83935629]
[1646206729393,51.45492305,102.53,102.43,141.83935629]
[1646206729587,51.45492305,102.53,102.43,49.34935629]
[1646206730087,51.45492305,102.53,102.43,141.83935629]
[1646206730292,51.45492305,102.53,102.43,168.69991322]
[1646206730487,51.45492305,102.53,102.43,71.20991322]
[1646206730687,51.45492305,102.53,102.43,49.34935629]
[1646206730888,51.45492305,102.53,102.43,44.34935629]
[1646206731288,148.94492305,102.53,102.43,44.34935629]
[1646206731491,160.48492305,102.53,102.43,44.34935629]
[1646206731894,62.99492305,102.53,102.43,44.34935629]
[1646206732094,77.63372305,102.53,102.43,44.34935629]
[1646206732291,77.63372305,102.53,102.43,141.83935629]
[1646206732491,62.99492305,102.53,102.43,141.83935629]
[1646206732694,51.45492305,102.53,102.43,146.83935629]
[1646206733294,51.45492305,102.53,102.43,141.83935629]
[1646206733991,51.45492305,102.53,102.43,146.83935629]
[1646206734395,51.45492305,102.53,102.43,141.83935629]
[1646206734591,51.45492305,102.53,102.43,146.83935629]
[1646206734993,45.5804,102.54,102.43,191.78583312]
[1646206735295,26.8492,102.57,102.48,112.1225]
[1646206735493,22.9462,102.57,102.48,123.6625]
[1646206735693,22.9462,102.57,102.49,2.54904003]
[1646206735892,60.2602683,102.56,102.5,2.22846464]
[1646206736998,60.2602683,102.56,102.5,16.85876464]
[1646206737396,60.2602683,102.56,102.49,5.0]
[1646206738398,60.2602683,102.56,102.49,36.05439095]
[1646206738598,60.2602683,102.56,102.49,31.05439095]
[1646206739999,60.2602683,102.56,102.48,14.632]
[1646206740203,83.8938683,102.56,102.47,25.64364003]
[1646206740400,83.8938683,102.56,102.47,23.0946]
[1646206741000,181.3838683,102.56,102.47,23.0946]
[1646206741200,83.8938683,102.56,102.48,30.27008734]
[1646206741402,69.2592683,102.56,102.48,30.27008734]
[1646206741602,60.2602683,102.56,102.48,30.27008734]
[1646206741901,38.4404,102.58,102.48,130.30912737]
[1646206742104,23.8076,102.58,102.48,130.30912737]
[1646206742502,23.8076,102.58,102.48,141.84912737]
[1646206742904,49.23400748,102.57,102.48,141.84912737]
[1646206743322,49.23400748,102.57,102.5,5.0]
[1646206743521,49.23400748,102.57,102.49,14.6303]
[1646206746125,146.72400748,102.57,102.49,14.6303]
[1646206746325,146.72400748,102.57,102.47,37.728]
[1646206747230,146.72400748,102.57,102.47,62.76448317]
[1646206747626,158.26400748,102.57,102.47,62.76448317]
[1646206748027,172.89740748,102.57,102.47,62.76448317]
[1646206751534,75.40740748,102.57,102.47,62.76448317]
[1646206751731,75.40740748,102.57,102.47,65.3135232]
[1646206751932,63.86740748,102.57,102.47,65.3135232]
[1646206752143,63.86740748,102.57,102.47,174.3435232]
[1646206752334,49.23400748,102.57,102.47,201.20408013]
[1646206752534,49.23400748,102.57,102.47,211.97660958]
[1646206752736,49.23400748,102.57,102.47,232.21018105]
[1646206752932,49.23400748,102.57,102.49,102.49]
[1646206753133,49.23400748,102.57,102.5,112.1183]
[1646206753432,49.23400748,102.57,102.51,6.90243776]
[1646206755333,24.567,102.6,102.51,121.56897779]
[1646206755535,24.567,102.6,102.51,125.46897779]
[1646206755733,24.567,102.6,102.51,130.46897779]
[1646206755935,24.567,102.6,102.51,125.46897779]
[1646206756136,51.13689265,102.59,102.51,125.46897779]
[1646206756336,23.6564,102.61,102.51,130.46897779]
[1646206756537,23.6564,102.61,102.52,0.31682027]
[1646206756743,23.6564,102.61,102.52,11.85682027]
[1646206757041,23.6564,102.61,102.53,17.17254003]
[1646206757237,57.10746674,102.6,102.53,28.71254003]
[1646206757642,57.10746674,102.6,102.53,17.17254003]
[1646206758439,57.10746674,102.6,102.51,68.35667779]
[1646206758838,57.10746674,102.6,102.51,35.74093776]
[1646206759041,63.23546674,102.6,102.51,30.74093776]
[1646206759440,160.72546674,102.6,102.51,30.74093776]
[1646206759648,172.26546674,102.6,102.51,23.8385]
[1646206759839,186.89436674,102.6,102.51,23.8385]
[1646206760443,89.40436674,102.6,102.52,2.54904003]
[1646206760843,186.89436674,102.6,102.52,2.54904003]
[1646206761045,247.76904994,102.6,102.49,3.9]
[1646206761243,249.09787076,102.6,102.48,26.25494003]
[1646206761446,269.07857811,102.6,102.48,23.7059]
[1646206761649,301.01645472,102.6,102.48,23.7059]
[1646206761846,206.81210033,102.6,102.48,51.1669047]
[1646206762044,211.81210033,102.6,102.48,51.1669047]
[1646206762444,231.79280768,102.6,102.48,51.1669047]
[1646206762850,231.79280768,102.6,102.48,23.7059]
[1646206763247,226.79280768,102.6,102.48,23.7059]
[1646206763547,231.79280768,102.6,102.48,23.7059]
[1646206763747,218.13975729,102.6,102.49,30.88897452]
[1646206764148,212.01175729,102.6,102.49,30.88897452]
[1646206764348,192.03104994,102.6,102.49,30.88897452]
[1646206764551,188.13104994,102.6,102.49,30.88897452]
[1646206765554,185.76636674,102.6,102.49,45.51917452]
[1646206765754,180.76636674,102.6,102.49,69.26567452]
[1646206766453,71.73636674,102.6,102.49,166.75567452]
[1646206766656,57.10746674,102.6,102.51,112.1171]
[1646206767255,57.10746674,102.6,102.51,19.6271]
[1646206767456,59.47214994,102.6,102.51,5.0]
[1646206767657,112.1228,102.58,102.49,54.63547452]
[1646206767859,123.6628,102.58,102.5,3.9]
[1646206768256,26.1728,102.58,102.5,3.9]
[1646206768456,26.1728,102.58,102.49,54.63547452]
[1646206769859,97.49,102.57,102.48,3.9]
[1646206770061,112.1274,102.54,102.48,5.0]
[1646206770266,123.6674,102.54,102.48,5.0]
[1646206770762,123.6674,102.54,102.45,32.6446]
[1646206770969,48.98839431,102.53,102.46,30.11388424]
[1646206772868,146.47839431,102.53,102.46,30.11388424]
[1646206773071,146.47839431,102.53,102.45,27.6466]
[1646206773269,146.47839431,102.53,102.45,23.7446]
[1646206773270,172.65739431,102.53,102.45,23.7446]
[1646206775471,172.65739431,102.53,102.42,23.63095739]
[1646206775472,175.02207751,102.53,102.42,23.63095739]
[1646206775673,97.49,102.51,102.42,5.08995739]
[1646206775870,112.132,102.51,102.41,144.4561]
[1646206776070,97.49,102.49,102.41,121.803]
[1646206776270,97.49,102.49,102.41,117.9]
[1646206776472,151.48607708,102.48,102.41,117.9]
[1646206776871,166.13207708,102.48,102.41,5.0]
[1646206777088,174.99907708,102.48,102.39,28.2231]
[1646206777281,248.8521856,102.48,102.39,3.904]
[1646206777482,247.41376028,102.48,102.38,5.0]
[1646206777682,306.17153112,102.48,102.38,5.0]
[1646206777880,306.17153112,102.48,102.33,198.24]
[1646206777881,14.654,102.45,102.34,3.904]
[1646206778082,167.54,102.44,102.33,3.906]
[1646206778385,260.97981604,102.44,102.32,3.906]
[1646206778581,97.49,102.42,102.32,8.906]
[1646206778781,97.49,102.4,102.32,5.0]
[1646206778984,53.70999617,102.39,102.32,27.68762861]
[1646206779784,53.70999617,102.39,102.32,22.68762861]
[1646206779983,53.70999617,102.39,102.32,27.68762861]
[1646206781385,53.70999617,102.39,102.32,5.0]
[1646206781584,75.04199617,102.39,102.32,5.0]
[1646206781788,60.38299617,102.39,102.32,5.0]
[1646206781986,71.92299617,102.39,102.32,5.0]
[1646206782485,117.21587961,102.39,102.32,5.0]
[1646206782688,96.19238672,102.39,102.29,31.21402979]
[1646206783085,74.28767937,102.39,102.29,31.21402979]
[1646206783285,74.28767937,102.39,102.29,36.21402979]
[1646206783286,65.24999617,102.39,102.29,36.21402979]
[1646206783885,14.6606,102.38,102.29,36.21402979]
[1646206784085,53.70999617,102.39,102.29,31.21402979]
[1646206784287,53.70999617,102.39,102.3,8.908]
[1646206785786,53.70999617,102.39,102.29,45.87252979]
[1646206785988,53.70999617,102.39,102.3,5.0]
[1646206786987,53.70999617,102.39,102.3,14.6576]
[1646206787187,53.70999617,102.39,102.31,5.0]
[1646206788592,53.70999617,102.39,102.31,24.57165551]
[1646206788791,15.448,102.44,102.31,58.87354577]
[1646206788989,47.8006,102.43,102.31,105.61774577]
[1646206789389,47.8006,102.43,102.31,200.74123029]
[1646206789689,47.8006,102.43,102.31,214.02234661]
[1646206789690,57.39457263,102.42,102.31,214.02234661]
[1646206790090,57.39457263,102.42,102.31,228.74014661]
[1646206790293,57.39457263,102.42,102.31,223.74014661]
[1646206790495,57.39457263,102.42,102.33,5.0]
[1646206790693,57.39457263,102.42,102.34,11.54]
[1646206790891,57.39457263,102.42,102.35,20.37439114]
[1646206791095,57.39457263,102.42,102.35,22.92343117]
[1646206791492,57.39457263,102.42,102.36,2.54904003]
[1646206792394,57.39457263,102.42,102.35,5.0]
[1646206792594,68.93457263,102.42,102.32,5.0]
[1646206793403,112.1482,102.4,102.31,55.97431579]
[1646206793800,112.1482,102.4,102.31,46.25651579]
[1646206794001,97.49,102.4,102.31,5.0]
[1646206794197,111.3946832,102.4,102.3,3.908]
[1646206795197,97.49,102.37,102.3,3.908]
[1646206795398,116.518,102.37,102.3,3.908]
[1646206795598,200.78805722,102.37,102.29,5.0]
[1646206795796,200.78805722,102.37,102.26,0.48872254]
[1646206795797,225.27905331,102.37,102.26,0.48872254]
[1646206796299,97.49,102.35,102.26,5.48872254]
[1646206796497,156.56749551,102.34,102.26,9.94223607]
[1646206796697,59.07749551,102.34,102.26,9.94223607]
[1646206797296,59.07749551,102.34,102.26,4.94223607]
[1646206797698,59.07749551,102.34,102.26,9.94223607]
[1646206798598,156.56749551,102.34,102.26,19.60693607]
[1646206798803,59.07749551,102.34,102.26,19.60693607]
[1646206800702,156.56749551,102.34,102.26,19.60693607]
[1646206801101,59.07749551,102.34,102.26,19.60693607]
[1646206802504,59.07749551,102.34,102.26,15.15342254]
[1646206803002,156.56749551,102.34,102.26,15.15342254]
[1646206803203,59.07749551,102.34,102.26,15.15342254]
[1646206803403,34.2118,102.36,102.26,117.26533113]
[1646206803404,22.6718,102.36,102.26,117.26533113]
[1646206803605,3.91,102.37,102.27,25.70626608]
[1646206803805,3.91,102.37,102.3,14.6574]
[1646206804103,24.173,102.39,102.3,14.6574]
[1646206804304,97.49,102.37,102.31,2.54904003]
[1646206804503,59.28801188,102.38,102.29,2.54904003]
[1646206805002,97.49,102.37,102.27,48.5649]
[1646206805202,97.49,102.37,102.28,14.6614]
[1646206805402,49.20297558,102.36,102.28,14.6614]
[1646206805604,146.69297558,102.36,102.28,14.6614]
[1646206805803,161.35657558,102.36,102.28,14.6614]
[1646206806204,63.86657558,102.36,102.28,14.6614]
[1646206808914,161.35657558,102.36,102.28,14.6614]
[1646206809510,222.25222569,102.36,102.27,5.0]
[1646206809709,242.78722569,102.36,102.27,5.0]
[1646206810309,240.40157558,102.36,102.27,5.0]
[1646206810509,181.89157558,102.36,102.27,19.6638]
[1646206810709,172.89657558,102.36,102.28,7.65125658]
[1646206812313,172.89657558,102.36,102.27,19.6638]
[1646206813216,172.89657558,102.36,102.28,26.56577838]
[1646206813412,75.40657558,102.36,102.28,26.56577838]
[1646206813614,63.86657558,102.36,102.28,41.22787838]
[1646206813813,49.20297558,102.36,102.28,41.22787838]
[1646206814016,49.20297558,102.36,102.28,43.77691841]
[1646206814215,24.0595,102.38,102.28,165.13256829]
[1646206814413,24.0595,102.38,102.28,172.60638607]
[1646206814614,24.0595,102.38,102.28,210.227487]
[1646206815214,81.39549513,102.38,102.28,210.227487]
[1646206815614,81.39549513,102.38,102.28,205.227487]
[1646206816016,81.39549513,102.38,102.28,219.566287]
[1646206816214,81.39549513,102.38,102.29,5.0]
[1646206816417,81.39549513,102.38,102.31,14.6573]
[1646206816619,57.33599513,102.38,102.32,26.56577838]
[1646206817316,24.173,102.39,102.32,26.56577838]
[1646206817516,3.907,102.41,102.32,41.22257838]
[1646206817717,37.5964,102.42,102.32,41.22257838]
[1646206818336,59.66345958,102.41,102.32,41.22257838]
[1646206819141,171.80965958,102.41,102.32,41.22257838]
[1646206819338,74.31965958,102.41,102.32,41.22257838]
[1646206820539,171.80965958,102.41,102.32,41.22257838]
[1646206821040,74.31965958,102.41,102.32,41.22257838]
[1646206822640,59.66345958,102.41,102.32,41.22257838]
[1646206823643,59.66345958,102.41,102.32,138.71257838]
[1646206823845,59.66345958,102.41,102.34,121.42154255]
[1646206824351,59.66345958,102.41,102.34,26.48058258]
[1646206824545,59.66345958,102.41,102.34,9.28114255]
[1646206825147,59.66345958,102.41,102.31,87.97348991]
[1646206825345,74.31945958,102.41,102.33,14.6551]
[1646206826045,171.80945958,102.41,102.33,14.6551]
[1646206826746,171.80945958,102.41,102.32,33.59277999]
[1646206826951,50.83961949,102.39,102.32,33.59277999]
[1646206828149,50.83961949,102.39,102.32,48.24957999]
[1646206828948,54.1713,102.42,102.32,48.24957999]
[1646206829151,50.2643,102.42,102.32,48.24957999]
[1646206829353,50.2643,102.42,102.32,50.79862002]
[1646206829849,60.76188876,102.41,102.32,50.79862002]
[1646206831853,60.76188876,102.41,102.32,65.70112002]
[1646206835155,75.41798876,102.41,102.32,50.79862002]
[1646206835355,94.60498876,102.41,102.32,48.24957999]
[1646206835556,177.43888876,102.41,102.31,52.2176]
[1646206835755,177.43888876,102.41,102.31,47.2176]
[1646206835955,235.94888876,102.41,102.3,130.10694003]
[1646206836155,235.94888876,102.41,102.28,16.88784003]
[1646206836358,97.49,102.39,102.28,63.88084003]
[1646206836655,86.04369031,102.38,102.29,34.45035541]
[1646206836856,189.92169031,102.38,102.29,34.45035541]
[1646206837060,204.58199031,102.38,102.29,34.45035541]
[1646206837556,204.58199031,102.38,102.28,69.20274003]
[1646206837758,204.58199031,102.38,102.28,61.6537]
[1646206837961,263.09199031,102.38,102.28,46.993]
[1646206838356,263.09199031,102.38,102.26,136.99952254]
[1646206838559,263.09199031,102.38,102.27,30.34946394]
[1646206840262,204.58199031,102.38,102.27,48.92126394]
[1646206840460,3.908,102.37,102.27,70.80130397]
[1646206840660,46.88305321,102.36,102.27,94.66695385]
[1646206840861,69.61565321,102.36,102.27,94.66695385]
[1646206841459,69.61565321,102.36,102.27,117.97623522]
[1646206841660,69.61565321,102.36,102.27,121.88423522]
[1646206842661,69.61565321,102.36,102.27,126.88423522]
[1646206842862,69.61565321,102.36,102.27,121.88423522]
[1646206843063,69.61565321,102.36,102.27,126.88423522]
[1646206843867,24.5603,102.39,102.27,226.64077394]
[1646206844071,24.5603,102.39,102.29,97.49]
[1646206844372,24.5603,102.39,102.31,14.6564]
[1646206844788,42.91963504,102.38,102.32,8.04649702]
[1646206845591,42.91963504,102.38,102.32,22.70249702]
[1646206845993,24.5603,102.39,102.32,22.70249702]
[1646206847096,70.46703298,102.39,102.32,22.70249702]
[1646206847695,70.46703298,102.39,102.32,37.49059702]
[1646206848995,70.46703298,102.39,102.32,5.49745699]
[1646206853400,70.46703298,102.39,102.31,14.6574]
[1646206854403,45.90673298,102.39,102.32,30.22712852]
[1646206854807,45.90673298,102.39,102.32,44.88302852]
[1646206857307,24.3203,102.4,102.32,47.43206855]
[1646206857504,24.3203,102.4,102.32,144.92206855]
[1646206857705,24.3203,102.4,102.32,192.0969998]
[1646206858104,24.3203,102.4,102.33,3.907]
[1646206858305,77.85668445,102.42,102.34,20.27159241]
[1646206858506,77.85668445,102.42,102.34,120.31063244]
[1646206858704,77.85668445,102.42,102.35,2.54904003]
[1646206858905,15.446,102.45,102.36,29.57633035]
[1646206859208,3.906,102.45,102.36,136.08033035]
[1646206859404,23.6363,102.46,102.37,2.54904003]
[1646206860005,59.96729001,102.45,102.38,6.27059058]
[1646206861007,59.96729001,102.45,102.38,20.91709058]
[1646206861208,59.96729001,102.45,102.38,14.6465]
[1646206862608,157.45729001,102.45,102.37,2.54904003]
[1646206863606,59.96729001,102.45,102.37,29.7649775]
[1646206866607,157.45729001,102.45,102.37,29.7649775]
[1646206866811,157.45729001,102.45,102.37,2.54904003]
[1646206867308,157.45729001,102.45,102.35,41.39904003]
[1646206867508,11.54,102.44,102.35,38.85]
[1646206867913,44.00282391,102.43,102.35,38.85]
[1646206868210,44.00282391,102.43,102.35,24.2792]
[1646206868410,141.49282391,102.43,102.35,24.2792]
[1646206868811,141.49282391,102.43,102.34,24.3276]
[1646206869112,222.55078179,102.43,102.33,3.904]
[1646206870311,227.55078179,102.43,102.33,3.904]
[1646206871113,14.656,102.41,102.33,3.904]
[1646206871312,59.87073614,102.4,102.33,3.904]
[1646206872317,172.01833614,102.4,102.33,3.904]
[1646206872516,177.32673614,102.4,102.33,3.904]
[1646206873120,2.38695788,102.39,102.33,3.904]